fUSD/lending_fUSD_20240628
["ID","MTS","AMOUNT","RATE_DAILY","PERIOD"]
[330527970,1719558743130,-500.0,0.00020273,2]
[330527971,1719558743141,-500.0,0.00020273,2]
[330527972,1719558743150,-500.0,0.00020273,2]
[330527973,1719558743160,-10459.3,0.00020273,2]
[330527974,1719558743170,-500.0,0.00020273,2]
[330527975,1719558743184,-500.0,0.00020273,2]
[330527976,1719558743193,-1129.7,0.00020273,2]
[330527977,1719558743205,-3893.33,0.00020273,2]
[330527978,1719558743214,-970.09,0.00020273,2]
[330527979,1719558743223,-2771.23,0.00020273,2]
[330527980,1719558743233,-2837.24,0.00020273,2]
[330527981,1719558743242,-500.0,0.00020273,2]
[330527982,1719558743252,-2314.53,0.00020273,2]
[330527983,1719558743262,-403.47792185,0.0002028,2]
[330527984,1719558743272,-151.0,0.00020388,2]
[330527985,1719558743281,-605.88,0.00020401,2]
[330527986,1719558743291,-101028.0,0.00020421,6]
[330527987,1719558743300,-36226.82,0.00020421,6]
[330527988,1719558743309,-11206.65,0.00020421,6]
[330527989,1719558743319,-8765.06,0.00020421,6]
[330527990,1719558743328,-16758.52,0.00020421,6]
[330527991,1719558743337,-517.34538336,0.00020449,2]
[330527992,1719558743346,-2000.0,0.000205,2]
[330527993,1719558743356,-12019.12,0.000205,6]
[330527994,1719558743366,-42367.99,0.000205,6]
[330527995,1719558743375,-8756.99,0.000205,6]
[330527996,1719558743384,-153.32,0.00020521,2]
[330527997,1719558743394,-354.09,0.00020521,2]
[330527998,1719558743403,-164.49,0.00020521,2]
[330527999,1719558743413,-23930.02,0.00020521,6]
[330528000,1719558743423,-630.31740068,0.00020547,2]
[330528001,1719558743435,-500.0,0.00020547,2]
[330528002,1719558743446,-500.0,0.00020547,2]
[330528003,1719558743455,-500.0,0.00020547,2]
[330528004,1719558743464,-500.0,0.00020547,2]
[330528005,1719558743474,-500.0,0.00020547,2]
[330528006,1719558743483,-500.0,0.00020547,2]
[330528007,1719558743492,-500.0,0.00020547,2]
[330528008,1719558743501,-500.0,0.00020547,2]
[330528009,1719558743511,-500.0,0.00020547,2]
[330528010,1719558743520,-500.0,0.00020547,2]
[330528011,1719558743530,-500.0,0.00020547,2]
[330528012,1719558743539,-500.0,0.00020547,2]
[330528013,1719558743548,-500.0,0.00020547,2]
[330528014,1719558743563,-500.0,0.00020547,2]
[330528015,1719558743572,-500.0,0.00020547,2]
[330528016,1719558743582,-500.0,0.00020547,2]
[330528017,1719558743591,-500.0,0.00020547,2]
[330528018,1719558743600,-500.0,0.00020547,2]
[330528019,1719558743609,-500.0,0.00020547,2]
[330528020,1719558743618,-500.0,0.00020547,2]
[330528021,1719558743627,-500.0,0.00020547,2]
[330528022,1719558743636,-500.0,0.00020547,2]
[330528023,1719558743646,-500.0,0.00020547,2]
[330528024,1719558743655,-368.20177115,0.00020547,2]
[330528025,1719558743666,-500.0,0.00020547,2]
[330528026,1719558743676,-468.16812092,0.00020547,2]
[330528027,1719558743685,-500.0,0.00020547,2]
[330528028,1719558743694,-500.0,0.00020547,2]
[330528029,1719558743704,-500.0,0.00020547,2]
[330528030,1719558743714,-500.0,0.00020547,2]
[330528031,1719558743724,-500.0,0.00020547,2]
[330528032,1719558743734,-500.0,0.00020547,2]
[330528033,1719558743744,-500.0,0.00020547,2]
[330528034,1719558743753,-500.0,0.00020547,2]
[330528035,1719558743763,-357.86772437,0.00020547,2]
[330528036,1719558743772,-500.0,0.00020547,2]
[330528037,1719558743781,-500.0,0.00020547,2]
[330528038,1719558743791,-500.0,0.00020547,2]
[330528039,1719558743800,-500.0,0.00020547,2]
[330528040,1719558743811,-500.0,0.00020547,2]
[330528041,1719558743822,-500.0,0.00020547,2]
[330528042,1719558743831,-500.0,0.00020547,2]
[330528043,1719558743840,-500.0,0.00020547,2]
[330528044,1719558743850,-500.0,0.00020547,2]
[330528045,1719558743859,-886.86,0.00020547,2]
[330528046,1719558743868,-500.0,0.00020547,2]
[330528047,1719558743877,-500.0,0.00020547,2]
[330528048,1719558743887,-500.0,0.00020547,2]
[330528049,1719558743896,-500.0,0.00020547,2]
[330528050,1719558743905,-1151.71,0.00020547,2]
[330528051,1719558743914,-500.0,0.00020547,2]
[330528052,1719558743924,-500.0,0.00020547,2]
[330528053,1719558743933,-682.81,0.00020547,2]
[330528054,1719558743942,-2974.6,0.00020547,2]
[330528055,1719558743952,-500.0,0.00020547,2]
[330528056,1719558743962,-500.0,0.00020547,2]
[330528057,1719558743971,-500.0,0.00020547,2]
[330528058,1719558743981,-520.33,0.00020547,2]
[330528059,1719558743990,-1852.46,0.00020547,2]
[330528060,1719558744000,-500.0,0.00020547,2]
[330528061,1719558744010,-1092.66,0.00020547,2]
[330528062,1719558744019,-612.28590604,0.00020547,2]
[330528063,1719558744029,-500.0,0.00020547,2]
[330528064,1719558744038,-500.0,0.00020547,2]
[330528065,1719558744048,-500.0,0.00020547,2]
[330528066,1719558744057,-743.82,0.00020547,2]
[330528067,1719558744067,-860.26,0.00020547,2]
[330528068,1719558744077,-500.0,0.00020547,2]
[330528069,1719558744086,-500.0,0.00020547,2]
[330528070,1719558744096,-608.72,0.00020547,2]
[330528071,1719558744109,-734.57,0.00020547,2]
[330528072,1719558744118,-888.31,0.00020547,2]
[330528073,1719558744128,-500.0,0.00020547,2]
[330528074,1719558744138,-560.78,0.00020547,2]
[330528075,1719558744147,-500.0,0.00020547,2]
[330528076,1719558744158,-1659.7,0.00020547,2]
[330528077,1719558744169,-2806.65,0.00020547,2]
[330528078,1719558744180,-2305.03,0.00020547,2]
[330528079,1719558744190,-500.0,0.00020547,2]
[330528080,1719558744199,-500.0,0.00020547,2]
[330528081,1719558744209,-500.0,0.00020547,2]
[330528082,1719558744219,-1208.84,0.00020547,2]
[330528083,1719558744228,-1136.16,0.00020547,2]
[330528084,1719558744237,-737.0,0.00020547,2]
[330528085,1719558744247,-500.0,0.00020547,2]
[330528086,1719558744256,-500.0,0.00020547,2]
[330528087,1719558744265,-500.0,0.00020547,2]
[330528088,1719558744274,-2150.69,0.00020547,2]
[330528089,1719558744283,-500.0,0.00020547,2]
[330528090,1719558744292,-500.0,0.00020547,2]
[330528091,1719558744301,-500.0,0.00020547,2]
[330528092,1719558744310,-500.0,0.00020547,2]
[330528093,1719558744320,-500.0,0.00020547,2]
[330528094,1719558744329,-1100.75,0.00020547,2]
[330528095,1719558744338,-2202.97,0.00020547,2]
[330528096,1719558744347,-532.95,0.00020547,2]
[330528097,1719558744357,-928.31,0.00020547,2]
[330528098,1719558744366,-500.0,0.00020547,2]
[330528099,1719558744375,-528.55,0.00020547,2]
[330528100,1719558744384,-500.0,0.00020547,2]
[330528101,1719558744393,-717.58,0.00020547,2]
[330528102,1719558744403,-500.0,0.00020547,2]
[330528103,1719558744412,-500.0,0.00020547,2]
[330528104,1719558744421,-973.5,0.00020547,2]
[330528105,1719558744430,-1662.73,0.00020547,2]
[330528106,1719558744439,-516.8912288,0.00020547,2]
[330528107,1719558744448,-500.0,0.00020547,2]
[330528108,1719558744457,-500.0,0.00020547,2]
[330528109,1719558744466,-500.0,0.00020547,2]
[330528110,1719558744475,-500.0,0.00020547,2]
[330528111,1719558744484,-544.83,0.00020547,2]
[330528112,1719558744493,-1021.32,0.00020547,2]
[330528113,1719558744502,-803.25,0.00020547,2]
[330528114,1719558744512,-500.0,0.00020547,2]
[330528115,1719558744521,-500.0,0.00020547,2]
[330528116,1719558744530,-500.0,0.00020547,2]
[330528117,1719558744539,-500.0,0.00020547,2]
[330528118,1719558744548,-500.0,0.00020547,2]
[330528119,1719558744558,-500.0,0.00020547,2]
[330528120,1719558744567,-933.12,0.00020547,2]
[330528121,1719558744576,-1198.98,0.00020547,2]
[330528122,1719558744585,-203.18937169,0.00020547,2]
[330528123,1719558744594,-671.66,0.00020547,2]
[330528124,1719558744603,-1546.54,0.00020547,2]
[330528125,1719558744613,-500.0,0.00020547,2]
[330528126,1719558744622,-500.0,0.00020547,2]
[330528127,1719558744631,-853.88,0.00020547,2]
[330528128,1719558744641,-1991.97,0.00020547,2]
[330528129,1719558744650,-500.0,0.00020547,2]
[330528130,1719558744659,-500.0,0.00020547,2]
[330528131,1719558744668,-500.0,0.00020547,2]
[330528132,1719558744678,-878.16,0.00020547,2]
[330528133,1719558744687,-500.0,0.00020547,2]
[330528134,1719558744696,-500.0,0.00020547,2]
[330528135,1719558744706,-387.01523995,0.00020547,2]
[330528136,1719558744716,-1108.4,0.00020547,2]
[330528137,1719558744725,-1797.61,0.00020547,2]
[330528138,1719558744734,-830.15,0.00020547,2]
[330528139,1719558744744,-500.0,0.00020547,2]
[330528140,1719558744753,-1458.9,0.00020547,2]
[330528141,1719558744763,-692.09,0.00020547,2]
[330528142,1719558744772,-500.0,0.00020547,2]
[330528143,1719558744781,-500.0,0.00020547,2]
[330528144,1719558744790,-857.9,0.00020547,2]
[330528145,1719558744800,-500.0,0.00020547,2]
[330528146,1719558744809,-565.29,0.00020547,2]
[330528147,1719558744819,-804.11,0.00020547,2]
[330528148,1719558744828,-500.0,0.00020547,2]
[330528149,1719558744837,-500.0,0.00020547,2]
[330528150,1719558744846,-971.38,0.00020547,2]
[330528151,1719558744855,-864.9,0.00020547,2]
[330528152,1719558744865,-500.0,0.00020547,2]
[330528153,1719558744874,-577.35,0.00020547,2]
[330528154,1719558744883,-500.0,0.00020547,2]
[330528155,1719558744892,-1590.21,0.00020547,2]
[330528156,1719558744901,-500.0,0.00020547,2]
[330528157,1719558744910,-2934.36,0.00020547,2]
[330528158,1719558744919,-1486.58,0.00020547,2]
[330528159,1719558744928,-500.0,0.00020547,2]
[330528160,1719558744937,-894.6,0.00020547,2]
[330528161,1719558744946,-3334.49,0.00020547,2]
[330528162,1719558744956,-1364.86,0.00020547,2]
[330528163,1719558744965,-776.63,0.00020547,2]
[330528164,1719558744974,-500.0,0.00020547,2]
[330528165,1719558744983,-500.0,0.00020547,2]
[330528166,1719558744992,-818.59,0.00020547,2]
[330528167,1719558745001,-500.0,0.00020547,2]
[330528168,1719558745011,-500.0,0.00020547,2]
[330528169,1719558745020,-500.0,0.00020547,2]
[330528170,1719558745029,-916.78,0.00020547,2]
[330528171,1719558745038,-500.0,0.00020547,2]
[330528172,1719558745047,-500.0,0.00020547,2]
[330528173,1719558745057,-500.0,0.00020547,2]
[330528174,1719558745066,-500.0,0.00020547,2]
[330528175,1719558745075,-500.0,0.00020547,2]
[330528176,1719558745085,-500.0,0.00020547,2]
[330528177,1719558745094,-500.0,0.00020547,2]
[330528178,1719558745108,-1606.4,0.00020547,2]
[330528179,1719558745118,-500.0,0.00020547,2]
[330528180,1719558745127,-500.0,0.00020547,2]
[330528181,1719558745136,-1523.71,0.00020547,2]
[330528182,1719558745146,-500.0,0.00020547,2]
[330528183,1719558745157,-500.0,0.00020547,2]
[330528184,1719558745166,-2289.07,0.00020547,2]
[330528185,1719558745177,-500.0,0.00020547,2]
[330528186,1719558745187,-2134.84,0.00020547,2]
[330528187,1719558745197,-500.0,0.00020547,2]
[330528188,1719558745206,-540.94,0.00020547,2]
[330528189,1719558745216,-500.0,0.00020547,2]
[330528190,1719558745225,-500.0,0.00020547,2]
[330528191,1719558745235,-1182.97,0.00020547,2]
[330528192,1719558745244,-687.74,0.00020547,2]
[330528193,1719558745253,-2844.29,0.00020547,2]
[330528194,1719558745263,-1516.21,0.00020547,2]
[330528195,1719558745272,-500.0,0.00020547,2]
[330528196,1719558745282,-8203.94,0.00020547,2]
[330528197,1719558745291,-877.81,0.00020547,2]
[330528198,1719558745300,-622.75,0.00020547,2]
[330528199,1719558745309,-500.0,0.00020547,2]
[330528200,1719558745319,-687.83,0.00020547,2]
[330528201,1719558745328,-2943.91,0.00020547,2]
[330528202,1719558745337,-500.0,0.00020547,2]
[330528203,1719558745346,-500.0,0.00020547,2]
[330528204,1719558745356,-500.0,0.00020547,2]
[330528205,1719558745365,-1079.86,0.00020547,2]
[330528206,1719558745374,-500.0,0.00020547,2]
[330528207,1719558745383,-500.0,0.00020547,2]
[330528208,1719558745392,-670.57,0.00020547,2]
[330528209,1719558745401,-500.0,0.00020547,2]
[330528210,1719558745411,-500.0,0.00020547,2]
[330528211,1719558745420,-1243.35,0.00020547,2]
[330528212,1719558745429,-500.0,0.00020547,2]
[330528213,1719558745439,-678.82,0.00020547,2]
[330528214,1719558745449,-500.0,0.00020547,2]
[330528215,1719558745458,-972.29,0.00020547,2]
[330528216,1719558745467,-500.0,0.00020547,2]
[330528217,1719558745476,-522.72414481,0.00020547,2]
[330528218,1719558745486,-10921.42,0.00020547,2]
[330528219,1719558745496,-983.07,0.00020547,2]
[330528220,1719558745505,-1718.14,0.00020547,2]
[330528221,1719558745514,-1703.42,0.00020547,2]
[330528222,1719558745524,-500.0,0.00020547,2]
[330528223,1719558745533,-500.0,0.00020547,2]
[330528224,1719558745542,-3108.58,0.00020547,2]
[330528225,1719558745552,-788.1,0.00020547,2]
[330528226,1719558745562,-1852.59,0.00020547,2]
[330528227,1719558745571,-500.0,0.00020547,2]
[330528228,1719558745581,-500.0,0.00020547,2]
[330528229,1719558745591,-1484.3,0.00020547,2]
[330528230,1719558745600,-500.0,0.00020547,2]
[330528231,1719558745610,-3216.82,0.00020547,2]
[330528232,1719558745619,-500.0,0.00020547,2]
[330528233,1719558745629,-500.0,0.00020547,2]
[330528234,1719558745638,-500.0,0.00020547,2]
[330528235,1719558745648,-500.0,0.00020547,2]
[330528236,1719558745657,-586.3505797,0.00020547,2]
[330528237,1719558745667,-638.54,0.00020547,2]
[330528238,1719558745676,-602.72,0.00020547,2]
[330528239,1719558745687,-557.47,0.00020547,2]
[330528240,1719558745696,-766.29,0.00020547,2]
[330528241,1719558745705,-1832.43,0.00020547,2]
[330528242,1719558745715,-500.0,0.00020547,2]
[330528243,1719558745725,-3427.76,0.00020547,2]
[330528244,1719558745734,-5215.3,0.00020547,2]
[330528245,1719558745744,-790.32,0.00020547,2]
[330528246,1719558745754,-800.58,0.00020547,2]
[330528247,1719558745763,-1166.53,0.00020547,2]
[330528248,1719558745774,-500.0,0.00020547,2]
[330528249,1719558745783,-500.0,0.00020547,2]
[330528250,1719558745793,-500.0,0.00020547,2]
[330528251,1719558745803,-539.42,0.00020547,2]
[330528252,1719558745812,-1302.32,0.00020547,2]
[330528253,1719558745821,-500.0,0.00020547,2]
[330528254,1719558745831,-3384.08,0.00020547,2]
[330528255,1719558745840,-1365.76,0.00020547,2]
[330528256,1719558745849,-989.66,0.00020547,2]
[330528257,1719558745859,-2076.44,0.00020547,2]
[330528258,1719558745869,-815.26,0.00020547,2]
[330528259,1719558745880,-520.33,0.00020547,2]
[330528260,1719558745889,-1406.52,0.00020547,2]
[330528261,1719558745899,-1219.21,0.00020547,2]
[330528262,1719558745909,-500.0,0.00020547,2]
[330528263,1719558745919,-3267.35,0.00020547,2]
[330528264,1719558745929,-1558.11,0.00020547,2]
[330528265,1719558745939,-500.0,0.00020547,2]
[330528266,1719558745949,-500.0,0.00020547,2]
[330528267,1719558745960,-2141.73,0.00020547,2]
[330528268,1719558745970,-500.0,0.00020547,2]
[330528269,1719558745979,-500.0,0.00020547,2]
[330528270,1719558745989,-500.0,0.00020547,2]
[330528271,1719558745999,-1902.0,0.00020547,2]
[330528272,1719558746009,-370.47962927,0.00020547,2]
[330528273,1719558746019,-1907.18,0.00020547,2]
[330528274,1719558746028,-500.0,0.00020547,2]
[330528275,1719558746038,-1934.24,0.00020547,2]
[330528276,1719558746047,-1347.33,0.00020547,2]
[330528277,1719558746057,-1238.63,0.00020547,2]
[330528278,1719558746067,-1650.8,0.00020547,2]
[330528279,1719558746076,-911.26,0.00020547,2]
[330528280,1719558746085,-500.0,0.00020547,2]
[330528281,1719558746095,-804.56,0.00020547,2]
[330528282,1719558746110,-593.54,0.00020547,2]
[330528283,1719558746119,-500.0,0.00020547,2]
[330528284,1719558746130,-1609.09,0.00020547,2]
[330528285,1719558746142,-2348.43,0.00020547,2]
[330528286,1719558746152,-500.0,0.00020547,2]
[330528287,1719558746162,-500.0,0.00020547,2]
[330528288,1719558746172,-1742.51,0.00020547,2]
[330528289,1719558746186,-500.0,0.00020547,2]
[330528290,1719558746196,-710.83,0.00020547,2]
[330528291,1719558746207,-1920.03,0.00020547,2]
[330528292,1719558746216,-1879.31,0.00020547,2]
[330528293,1719558746226,-500.0,0.00020547,2]
[330528294,1719558746236,-500.0,0.00020547,2]
[330528295,1719558746248,-765.65,0.00020547,2]
[330528296,1719558746257,-2975.68,0.00020547,2]
[330528297,1719558746267,-903.08,0.00020547,2]
[330528298,1719558746277,-500.0,0.00020547,2]
[330528299,1719558746286,-650.87,0.00020547,2]
[330528300,1719558746295,-500.0,0.00020547,2]
[330528301,1719558746305,-1810.96,0.00020547,2]
[330528302,1719558746314,-500.0,0.00020547,2]
[330528303,1719558746324,-500.0,0.00020547,2]
[330528304,1719558746334,-301.33996329,0.00020547,2]
[330528305,1719558746344,-500.0,0.00020547,2]
[330528306,1719558746354,-500.0,0.00020547,2]
[330528307,1719558746364,-1015.21,0.00020547,2]
[330528308,1719558746374,-500.0,0.00020547,2]
[330528309,1719558746383,-1769.92,0.00020547,2]
[330528310,1719558746392,-999.93,0.00020547,2]
[330528311,1719558746401,-674.68,0.00020547,2]
[330528312,1719558746410,-500.0,0.00020547,2]
[330528313,1719558746419,-3979.08,0.00020547,2]
[330528314,1719558746429,-3293.63,0.00020547,2]
[330528315,1719558746439,-1612.44,0.00020547,2]
[330528316,1719558746449,-942.11,0.00020547,2]
[330528317,1719558746462,-4986.05,0.00020547,2]
[330528318,1719558746472,-1330.05,0.00020547,2]
[330528319,1719558746481,-1680.98,0.00020547,2]
[330528320,1719558746490,-500.0,0.00020547,2]
[330528321,1719558746499,-500.0,0.00020547,2]
[330528322,1719558746509,-2541.57,0.00020547,2]
[330528323,1719558746518,-1249.46,0.00020547,2]
[330528324,1719558746527,-734.3,0.00020547,2]
[330528325,1719558746537,-500.0,0.00020547,2]
[330528326,1719558746546,-573.83,0.00020547,2]
[330528327,1719558746555,-1210.78,0.00020547,2]
[330528328,1719558746565,-625.67,0.00020547,2]
[330528329,1719558746574,-4578.15,0.00020547,2]
[330528330,1719558746583,-500.0,0.00020547,2]
[330528331,1719558746592,-2383.44,0.00020547,2]
[330528332,1719558746602,-500.0,0.00020547,2]
[330528333,1719558746612,-844.96,0.00020547,2]
[330528334,1719558746621,-2196.52,0.00020547,2]
[330528335,1719558746631,-500.0,0.00020547,2]
[330528336,1719558746640,-3981.14,0.00020547,2]
[330528337,1719558746651,-500.0,0.00020547,2]
[330528338,1719558746661,-551.78,0.00020547,2]
[330528339,1719558746672,-656.83,0.00020547,2]
[330528340,1719558746685,-1673.87,0.00020547,2]
[330528341,1719558746694,-1241.02,0.00020547,2]
[330528342,1719558746704,-500.0,0.00020547,2]
[330528343,1719558746713,-500.0,0.00020547,2]
[330528344,1719558746722,-1907.75,0.00020547,2]
[330528345,1719558746732,-1008.45,0.00020547,2]
[330528346,1719558746744,-1072.67,0.00020547,2]
[330528347,1719558746755,-1578.09,0.00020547,2]
[330528348,1719558746765,-1693.02,0.00020547,2]
[330528349,1719558746775,-671.7,0.00020547,2]
[330528350,1719558746785,-500.0,0.00020547,2]
[330528351,1719558746795,-1010.02,0.00020547,2]
[330528352,1719558746805,-500.0,0.00020547,2]
[330528353,1719558746814,-1100.6,0.00020547,2]
[330528354,1719558746823,-15955.78,0.00020547,2]
[330528355,1719558746833,-711.02,0.00020547,2]
[330528356,1719558746843,-2386.74,0.00020547,2]
[330528357,1719558746852,-500.0,0.00020547,2]
[330528358,1719558746862,-582.95,0.00020547,2]
[330528359,1719558746873,-531.63,0.00020547,2]
[330528360,1719558746882,-500.0,0.00020547,2]
[330528361,1719558746892,-2068.97,0.00020547,2]
[330528362,1719558746903,-500.0,0.00020547,2]
[330528363,1719558746914,-500.0,0.00020547,2]
[330528364,1719558746925,-851.02,0.00020547,2]
[330528365,1719558746936,-500.0,0.00020547,2]
[330528366,1719558746946,-500.0,0.00020547,2]
[330528367,1719558746956,-2076.19,0.00020547,2]
[330528368,1719558746966,-2225.32,0.00020547,2]
[330528369,1719558746976,-3840.25,0.00020547,2]
[330528370,1719558746986,-712.82,0.00020547,2]
[330528371,1719558746995,-1143.68,0.00020547,2]
[330528372,1719558747005,-500.0,0.00020547,2]
[330528373,1719558747015,-1392.44,0.00020547,2]
[330528374,1719558747206,-6077.81,0.00020547,2]
[330528375,1719558747218,-753.76,0.00020547,2]
[330528376,1719558747227,-514.82565866,0.00020547,2]
[330528377,1719558747237,-1105.67,0.00020547,2]
[330528378,1719558747246,-465.42167828,0.00020547,2]
[330528379,1719558747256,-500.0,0.00020547,2]
[330528380,1719558747265,-1578.03,0.00020547,2]
[330528381,1719558747276,-560.48,0.00020547,2]
[330528382,1719558747286,-632.32,0.00020547,2]
[330528383,1719558747295,-1002.32,0.00020547,2]
[330528384,1719558747304,-500.0,0.00020547,2]
[330528385,1719558747314,-1981.01,0.00020547,2]
[330528386,1719558747323,-500.0,0.00020547,2]
[330528387,1719558747332,-718.91,0.00020547,2]
[330528388,1719558747342,-500.0,0.00020547,2]
[330528389,1719558747351,-2329.42,0.00020547,2]
[330528390,1719558747360,-1316.28,0.00020547,2]
[330528391,1719558747369,-500.0,0.00020547,2]
[330528392,1719558747379,-1144.62,0.00020547,2]
[330528393,1719558747389,-500.0,0.00020547,2]
[330528394,1719558747399,-1712.61,0.00020547,2]
[330528395,1719558747409,-1563.65,0.00020547,2]
[330528396,1719558747419,-500.0,0.00020547,2]
[330528397,1719558747429,-2454.2,0.00020547,2]
[330528398,1719558747439,-500.0,0.00020547,2]
[330528399,1719558747449,-500.0,0.00020547,2]
[330528400,1719558747458,-500.0,0.00020547,2]
[330528401,1719558747468,-500.0,0.00020547,2]
[330528402,1719558747477,-1141.19,0.00020547,2]
[330528403,1719558747487,-3101.9,0.00020547,2]
[330528404,1719558747496,-500.0,0.00020547,2]
[330528405,1719558747505,-500.0,0.00020547,2]
[330528406,1719558747514,-610.25,0.00020547,2]
[330528407,1719558747523,-500.0,0.00020547,2]
[330528408,1719558747532,-500.0,0.00020547,2]
[330528409,1719558747543,-1574.21,0.00020547,2]
[330528410,1719558747553,-500.0,0.00020547,2]
[330528411,1719558747562,-634.6,0.00020547,2]
[330528412,1719558747572,-2674.4,0.00020547,2]
[330528413,1719558747581,-754.7,0.00020547,2]
[330528414,1719558747590,-500.0,0.00020547,2]
[330528415,1719558747599,-2060.65,0.00020547,2]
[330528416,1719558747609,-6990.29,0.00020547,2]
[330528417,1719558747618,-1842.26,0.00020547,2]
[330528418,1719558747627,-963.45,0.00020547,2]
[330528419,1719558747636,-500.0,0.00020547,2]
[330528420,1719558747646,-14366.4,0.00020547,2]
[330528421,1719558747655,-2857.87,0.00020547,2]
[330528422,1719558747664,-500.0,0.00020547,2]
[330528423,1719558747674,-1171.76,0.00020547,2]
[330528424,1719558747686,-558.83,0.00020547,2]
[330528425,1719558747696,-1203.56,0.00020547,2]
[330528426,1719558747706,-500.0,0.00020547,2]
[330528427,1719558747716,-500.0,0.00020547,2]
[330528428,1719558747726,-3675.92,0.00020547,2]
[330528429,1719558747736,-2811.74,0.00020547,2]
[330528430,1719558747745,-1680.8,0.00020547,2]
[330528431,1719558747755,-1244.61,0.00020547,2]
[330528432,1719558747764,-500.0,0.00020547,2]
[330528433,1719558747774,-641.86,0.00020547,2]
[330528434,1719558747784,-865.19,0.00020547,2]
[330528435,1719558747796,-631.75,0.00020547,2]
[330528436,1719558747805,-2271.99,0.00020547,2]
[330528437,1719558747815,-500.0,0.00020547,2]
[330528438,1719558747824,-955.4,0.00020547,2]
[330528439,1719558747833,-500.0,0.00020547,2]
[330528440,1719558747843,-891.75,0.00020547,2]
[330528441,1719558747853,-500.0,0.00020547,2]
[330528442,1719558747862,-1486.73,0.00020547,2]
[330528443,1719558747871,-1073.63,0.00020547,2]
[330528444,1719558747881,-516.07,0.00020547,2]
[330528445,1719558747892,-3152.16,0.00020547,2]
[330528446,1719558747902,-500.0,0.00020547,2]
[330528447,1719558747914,-500.0,0.00020547,2]
[330528448,1719558747925,-2841.69,0.00020547,2]
[330528449,1719558747936,-768.74,0.00020547,2]
[330528450,1719558747945,-3121.13,0.00020547,2]
[330528451,1719558747956,-1346.16,0.00020547,2]
[330528452,1719558747965,-94318.51,0.00020547,2]
[330528453,1719558747974,-500.0,0.00020547,2]
[330528454,1719558747983,-1232.34,0.00020547,2]
[330528455,1719558747993,-500.0,0.00020547,2]
[330528456,1719558748003,-500.0,0.00020547,2]
[330528457,1719558748013,-546.98,0.00020547,2]
[330528458,1719558748022,-500.0,0.00020547,2]
[330528459,1719558748031,-1794.64,0.00020547,2]
[330528460,1719558748040,-1919.41,0.00020547,2]
[330528461,1719558748050,-500.0,0.00020547,2]
[330528462,1719558748059,-3062.76,0.00020547,2]
[330528463,1719558748068,-1494.4,0.00020547,2]
[330528464,1719558748078,-500.0,0.00020547,2]
[330528465,1719558748087,-2328.24,0.00020547,2]
[330528466,1719558748096,-1132.48,0.00020547,2]
[330528467,1719558748111,-1692.21,0.00020547,2]
[330528468,1719558748120,-587.64,0.00020547,2]
[330528469,1719558748129,-500.0,0.00020547,2]